[Event "Asian Nation Cup Women 2018"]
[Site "Hamedan"]
[Date "2018.07.31"]
[Round "4"]
[White "Asgharzadeh, Mitra"]
[Black "Wang, Jue"]
[Result "1/2-1/2"]
[ECO "A04"]
[WhiteElo "1985"]
[BlackElo "2377"]
[Annotator "NA"]
[PlyCount "50"]
[EventDate "2018.07.27"]
[EventType "swiss"]
[EventCountry "IRI"]
[SourceTitle "playchess.com"]
[Source "ChessBase"]
[SourceQuality "1"]
[WhiteTeam "Iran"]
[BlackTeam "China"]
[WhiteTeamCountry "IRI"]
[BlackTeamCountry "CHN"]
[TimeControl "40/5400+30:1800+30"]

1. Nf3 {[%emt 0:00:00]} c5 {[%emt 0:00:08]} 2. g3 {[%emt 0:00:00]} Nc6 {[%emt 0:00:48]} 3. Bg2 {[%emt 0:00:00]} g6 {[%emt 0:01:03]} 4. O-O {[%emt 0:00:18]} Bg7 {[%emt 0:00:04]} 5. d3 {[%emt 0:00:09]} d5 {[%emt 0:04:29] LiveBook: 147 Games} 6. Nbd2 {[%emt 0:00:29]} e5 {[%emt 0:00:49] A08: King's Indian Attack} (6... Nf6 7. e4 O-O 8. Re1 e5 9. exd5 Nxd5 10. Nc4 f6 11. a4 b6 12. Nfd2 Be6 13. f4 Qd7 14. fxe5 fxe5 15. c3 Rad8 16. Qe2 Nde7 17. Be4 Bg4 18. Nf3 {½-½ (50) Maghsoodloo,P (2577)-Sethuraman,S (2633) Chengdu 2017}) 7. e4 {[%emt 0:00:21]} d4 {[%emt 0:00:25]} 8. a3 {[%emt 0:04:00]} Nge7 {[%emt 0:09:53]} 9. Qe1 $146 {[%emt 0:09:22]} ({Predecessor:} 9. Rb1 a5 10. a4 O-O 11. Nc4 Rb8 12. c3 b6 13. cxd4 cxd4 {1-0 (51) Carruez Berges,S (2120)-Remiro Juste,F (2306) Spain 2010}) 9... h6 {[%emt 0:17:10]} 10. Rb1 {[%emt 0:06:00]} a5 {[%emt 0:03:59]} 11. Nh4 {[%emt 0:06:21]} g5 12. Nf5 Nxf5 {[%emt 0:19:30]} 13. exf5 {[%emt 0:01:02]} Bxf5 {[%emt 0:00:05]} 14. f4 {[%emt 0:01:25]} gxf4 {[%emt 0:12:32]} 15. gxf4 {[%emt 0:00:28]} Qd7 {[%emt 0:03:28]} (15... Rg8 $11 {keeps the balance.}) 16. Nc4 {[%emt 0:10:55]} Rd8 {[%emt 0:08:50]} 17. fxe5 {[%emt 0:00:42]} O-O {[%emt 0:00:30]} 18. Qg3 {[%emt 0:02:28]} ({Viel schwächer ist} 18. Nxa5 Nxa5 19. Qxa5 b5 $16) 18... Kh8 {[%emt 0:00:29]} 19. Qh4 {[%emt 0:18:43]} Qe6 {[%emt 0:04:36]} 20. Kh1 $16 {[%emt 0:01:29]} (20. Bg5 $18 {und Weiss behält klar die Oberhand.} Bh7 21. Bxd8 Nxd8 22. a4) 20... Bh7 {[%emt 0:02:04]} 21. Bh3 {[%emt 0:02:51]} Qd5+ {[%emt 0:05:03]} 22. Bg2 {[%emt 0:00:12]} Qe6 {[%emt 0:00:05]} 23. Bh3 {[%emt 0:00:17]} Qd5+ {[%emt 0:00:39]} 24. Bg2 {[%emt 0:00:11]} Qe6 {[%emt 0:01:25]} 25. Bh3 {[%emt 0:00:21]} Qd5+ {[%emt 0:03:13]} 1/2-1/2

[Event "Asian Nation Cup Women 2018"]
[Site "Hamedan"]
[Date "2018.08.01"]
[Round "5"]
[White "Shen, Yang"]
[Black "Hejazipour, Mitra"]
[Result "1-0"]
[ECO "D37"]
[WhiteElo "2462"]
[BlackElo "2276"]
[Annotator "ChessBase"]
[PlyCount "125"]
[EventDate "2018.07.27"]
[EventType "swiss"]
[EventCountry "IRI"]
[SourceTitle "playchess.com"]
[Source "ChessBase"]
[SourceQuality "1"]
[WhiteTeam "China"]
[BlackTeam "Iran"]
[WhiteTeamCountry "CHN"]
[BlackTeamCountry "IRI"]
[TimeControl "40/5400+30:1800+30"]

1. d4 {[%emt 0:00:00]} d5 {[%emt 0:00:04]} 2. Nf3 {[%emt 0:00:41]} Nf6 {[%emt 0:00:35]} 3. c4 {[%emt 0:00:25]} e6 {[%emt 0:00:09]} 4. Nc3 {[%emt 0:01:09]} a6 {[%emt 0:00:19]} 5. cxd5 {[%emt 0:01:22]} exd5 {[%emt 0:00:05]} 6. Bg5 {[%emt 0:00:44]} Be6 {[%emt 0:00:28]} 7. e3 {[%emt 0:00:11]} Nbd7 {[%emt 0:00:41]} 8. Bd3 {[%emt 0:00:46]} Bd6 {[%emt 0:01:00]} 9. O-O {[%emt 0:01:17]} c6 {[%emt 0:02:15]} 10. Bf4 {[%emt 0:03:17]} Qc7 {[%emt 0:01:27]} 11. Qd2 {[%emt 0:03:38]} h6 {[%emt 0:24:28]} 12. Rfc1 {[%emt 0:04:27]} O-O {[%emt 0:04:40]} 13. b4 {[%emt 0:07:32]} Nh5 {[%emt 0:01:27]} 14. Bxd6 {[%emt 0:03:07]} Qxd6 {[%emt 0:00:01]} 15. Na4 {[%emt 0:02:07]} Bg4 {[%emt 0:06:18]} 16. Ne1 {[%emt 0:01:49]} Nhf6 17. Nc5 {[%emt 0:07:51]} Rfb8 {[%emt 0:18:20]} 18. a4 {[%emt 0:05:05]} Bh5 {[%emt 0:09:07]} 19. f3 {[%emt 0:01:11]} Nf8 {[%emt 0:04:34]} 20. Bf1 {[%emt 0:06:06]} Bg6 {[%emt 0:00:53]} 21. Ned3 {[%emt 0:00:55]} b6 {[%emt 0:02:19]} 22. Nb3 {[%emt 0:00:28]} N8d7 {[%emt 0:01:41]} 23. Nf4 {[%emt 0:10:01]} Bf5 {[%emt 0:00:57]} 24. Qc3 {[%emt 0:01:42]} Re8 {[%emt 0:03:10]} 25. a5 {[%emt 0:02:46]} g5 {[%emt 0:03:57]} 26. Ne2 {[%emt 0:00:17]} b5 {[%emt 0:00:14]} 27. Nc5 {[%emt 0:04:40]} Nxc5 {[%emt 0:02:40]} 28. Qxc5 {[%emt 0:04:22]} Qxc5 {[%emt 0:00:09]} 29. Rxc5 {[%emt 0:00:04]} Bd7 {[%emt 0:01:42]} 30. Kf2 {[%emt 0:01:08]} h5 {[%emt 0:06:18]} 31. Nc1 {[%emt 0:02:24]} Nh7 {[%emt 0:00:39]} 32. Nd3 {[%emt 0:01:59]} f6 {[%emt 0:00:39]} 33. h4 {[%emt 0:00:22]} gxh4 {[%emt 0:01:01]} 34. Nf4 {[%emt 0:00:09]} Re7 {[%emt 0:00:24]} 35. Bd3 {[%emt 0:01:06]} Ng5 {[%emt 0:00:50]} 36. Ng6 {[%emt 0:01:21]} Rg7 {[%emt 0:00:38]} 37. Nxh4 {[%emt 0:00:07]} Ne6 {[%emt 0:02:52]} 38. Rc3 {[%emt 0:01:57]} Nd8 {[%emt 0:00:01]} 39. Rh1 {[%emt 0:01:33]} Rg5 {[%emt 0:00:43]} 40. f4 {[%emt 0:00:58]} Rg7 {[%emt 0:01:00]} 41. Nf5 {[%emt 0:31:19]} Rh7 {[%emt 0:02:09]} 42. Ng3 {[%emt 0:00:00]} Rh6 {[%emt 0:01:18]} 43. Nxh5 {[%emt 0:00:00]} Nf7 {[%emt 0:01:27]} 44. e4 {[%emt 0:00:00]} dxe4 {[%emt 0:01:16]} 45. Bxe4 {[%emt 0:00:00]} f5 {[%emt 0:02:59]} 46. Bf3 {[%emt 0:00:00]} Nd6 {[%emt 0:01:19]} 47. Re1 {[%emt 0:00:00]} Kf7 {[%emt 0:01:23]} 48. Ng3 {[%emt 0:00:00]} Nc4 {[%emt 0:00:40]} 49. d5 {[%emt 0:00:00]} Nd2 {[%emt 0:03:39]} 50. dxc6 {[%emt 0:00:00]} Nxf3 {[%emt 0:00:56]} 51. Rec1 {[%emt 0:00:00]} Bxc6 {[%emt 0:02:09]} 52. Rxc6 {[%emt 0:00:00]} Rxc6 {[%emt 0:00:13]} 53. Rxc6 {[%emt 0:00:00]} Nd4 {[%emt 0:00:17]} 54. Rd6 {[%emt 0:00:00]} Nc2 {[%emt 0:02:44]} 55. Nxf5 {[%emt 0:00:00]} Nxb4 {[%emt 0:00:05]} 56. g4 {[%emt 0:00:00]} Rc8 {[%emt 0:01:00]} 57. g5 {[%emt 0:00:00]} Rc2+ {[%emt 0:06:20]} 58. Kf3 {[%emt 0:00:00]} Rc3+ {[%emt 0:01:00]} 59. Kg4 {[%emt 0:00:00]} Rd3 {[%emt 0:00:32]} 60. g6+ {[%emt 0:00:43]} Kg8 {[%emt 0:00:20]} 61. Rb6 {[%emt 0:00:44]} Rd8 {[%emt 0:00:12]} 62. Rb7 {[%emt 0:00:20]} Nd5 {[%emt 0:00:15]} 63. Nh6+ {[%emt 0:00:43]} 1-0

[Event "Asian Nation Cup Women 2018"]
[Site "Hamedan"]
[Date "2018.08.01"]
[Round "5"]
[White "Karavade, Eesha"]
[Black "Nguyen, Thi Thanh An"]
[Result "1/2-1/2"]
[ECO "E69"]
[WhiteElo "2378"]
[BlackElo "2257"]
[Annotator "NA"]
[PlyCount "130"]
[EventDate "2018.07.27"]
[EventType "swiss"]
[EventCountry "IRI"]
[SourceTitle "playchess.com"]
[Source "ChessBase"]
[SourceQuality "1"]
[WhiteTeam "India"]
[BlackTeam "Vietnam"]
[WhiteTeamCountry "IND"]
[BlackTeamCountry "VIE"]
[TimeControl "40/5400+30:1800+30"]

1. d4 Nf6 2. c4 g6 3. g3 Bg7 4. Bg2 O-O 5. Nc3 d6 6. Nf3 Nbd7 7. O-O c6 8. e4 e5 9. h3 Re8 10. Be3 Qa5 11. d5 cxd5 12. cxd5 b5 13. a3 b4 14. axb4 Qxb4 {[%emt 0:21:19]} 15. Qc2 {[%emt 0:34:18]} Nc5 {[%emt 0:01:11]} 16. Nd2 {[%emt 0:04:03]} Bd7 {[%emt 0:07:21]} 17. Na2 {[%emt 0:10:25]} Qb5 {[%emt 0:09:40]} 18. b4 {[%emt 0:03:16]} Na4 {[%emt 0:00:24]} 19. Nc3 {[%emt 0:00:30]} Nxc3 {[%emt 0:00:30]} 20. Qxc3 {[%emt 0:00:30]} Rec8 {[%emt 0:03:58]} 21. Qa3 {[%emt 0:07:40]} Ne8 {[%emt 0:10:43]} 22. Rfb1 {[%emt 0:05:43]} Qb7 {[%emt 0:01:42]} 23. Bf1 {[%emt 0:02:00]} Bb5 {[%emt 0:00:05]} 24. Bxb5 {[%emt 0:00:16]} Qxb5 25. Qa6 {[%emt 0:00:12]} Qd7 {[%emt 0:02:28]} 26. Kg2 {[%emt 0:09:05]} f5 {[%emt 0:03:53]} 27. Ra2 Rc3 28. Rb3 {[%emt 0:04:37]} Rc7 {[%emt 0:16:26]} 29. b5 {[%emt 0:01:01]} f4 {[%emt 0:01:21]} 30. gxf4 {[%emt 0:04:01]} exf4 {[%emt 0:00:09]} 31. Bxf4 {[%emt 0:00:04]} Rac8 {[%emt 0:01:15]} 32. Nf3 {[%emt 0:00:55]} h6 {[%emt 0:06:34]} 33. b6 {[%emt 0:03:41]} axb6 {[%emt 0:00:04]} 34. Rxb6 {[%emt 0:00:04]} g5 {[%emt 0:00:21]} 35. Bg3 {[%emt 0:02:33]} g4 {[%emt 0:02:17]} 36. hxg4 {[%emt 0:00:02]} Qxg4 {[%emt 0:00:07]} 37. Rc6 {[%emt 0:07:11]} Kh7 {[%emt 0:05:41]} 38. Ra4 {[%emt 0:00:40]} Rf7 {[%emt 0:06:35]} 39. Nh2 {[%emt 0:02:55]} Rxc6 {[%emt 0:01:24]} 40. Qxc6 {[%emt 0:01:10]} Qg6 {[%emt 0:00:18]} 41. Nf3 {[%emt 0:31:36]} Rf4 {[%emt 0:05:52]} 42. e5 {[%emt 0:00:00]} Rxa4 {[%emt 0:00:14]} 43. Qxa4 dxe5 {[%emt 0:04:40]} 44. Nh4 {[%emt 0:00:00]} Qf7 {[%emt 0:01:27]} 45. Qe4+ {[%emt 0:00:00]} Kg8 {[%emt 0:00:07]} 46. Bxe5 {[%emt 0:00:00]} Bxe5 {[%emt 0:01:16]} 47. Qxe5 {[%emt 0:00:00]} Qg7+ {[%emt 0:02:17]} 48. Qxg7+ Kxg7 49. Kf3 {[%emt 0:00:00]} Kf6 {[%emt 0:02:16]} 50. Ke4 {[%emt 0:00:00]} Nd6+ {[%emt 0:01:52]} 51. Kf4 {[%emt 0:00:00]} Nc4 {[%emt 0:01:13]} 52. Nf5 Nb6 {[%emt 0:01:37]} 53. Ne3 {[%emt 0:00:00]} h5 {[%emt 0:05:21]} 54. Ke4 {[%emt 0:00:00]} Na4 {[%emt 0:00:30]} 55. f4 {[%emt 0:00:58]} Nc3+ {[%emt 0:05:09]} 56. Kd3 {[%emt 0:00:30]} Nb5 {[%emt 0:00:17]} 57. Kc4 {[%emt 0:01:17]} Nd6+ {[%emt 0:00:46]} 58. Kd3 {[%emt 0:01:39]} Nb5 59. Ke4 {[%emt 0:00:37]} Nc3+ {[%emt 0:01:59]} 60. Kf3 Nb5 {[%emt 0:01:16]} 61. Kg3 {[%emt 0:01:37]} Nd4 62. Ng2 {[%emt 0:03:16]} Kf5 {[%emt 0:02:21]} 63. Kh4 {[%emt 0:01:31]} Ke4 {[%emt 0:00:52]} 64. d6 {[%emt 0:00:44]} Nf5+ {[%emt 0:00:11]} 65. Kxh5 Nxd6 {[%emt 0:00:05]} 1/2-1/2

[Event "Asian Nation Cup Women 2018"]
[Site "Hamedan"]
[Date "2018.08.01"]
[Round "5"]
[White "Zhai, Mo"]
[Black "Hamedi Nia, Vesal"]
[Result "1-0"]
[ECO "D31"]
[WhiteElo "2350"]
[BlackElo "2066"]
[Annotator "NA"]
[PlyCount "65"]
[EventDate "2018.07.27"]
[EventType "swiss"]
[EventCountry "IRI"]
[SourceTitle "playchess.com"]
[Source "ChessBase"]
[SourceQuality "1"]
[WhiteTeam "China"]
[BlackTeam "Iran"]
[WhiteTeamCountry "CHN"]
[BlackTeamCountry "IRI"]
[TimeControl "40/5400+30:1800+30"]

1. d4 {[%emt 0:00:00]} d5 {[%emt 0:00:00]} 2. c4 {[%emt 0:00:00]} e6 {[%emt 0:00:00]} 3. Nc3 {[%emt 0:00:07]} Be7 {[%emt 0:01:02]} 4. Nf3 {[%emt 0:01:10]} Nf6 {[%emt 0:00:07]} 5. cxd5 {[%emt 0:02:12]} exd5 {[%emt 0:00:14]} 6. Bg5 {[%emt 0:00:16]} c6 {[%emt 0:00:29]} 7. Qc2 {[%emt 0:00:22]} g6 {[%emt 0:02:26]} 8. e3 {[%emt 0:01:53]} Bf5 {[%emt 0:00:29]} 9. Bd3 {[%emt 0:04:48]} Bxd3 {[%emt 0:00:55]} 10. Qxd3 {[%emt 0:00:02]} Nbd7 {[%emt 0:00:43]} 11. O-O {[%emt 0:01:14]} O-O {[%emt 0:00:23]} 12. a3 {[%emt 0:01:02]} a5 {[%emt 0:03:24]} 13. Nd2 {[%emt 0:06:12]} Re8 {[%emt 0:03:35]} 14. Rae1 {[%emt 0:07:08]} Ne4 {[%emt 0:12:09]} 15. Bxe7 {[%emt 0:03:23]} Qxe7 {[%emt 0:00:12]} 16. f3 {[%emt 0:00:45]} Nxd2 {[%emt 0:01:43]} 17. Qxd2 {[%emt 0:00:01]} Nb6 {[%emt 0:08:40]} 18. e4 {[%emt 0:04:14]} Nc4 {[%emt 0:07:56]} 19. Qf2 {[%emt 0:00:28]} Qd7 20. h3 {[%emt 0:12:41]} b5 {[%emt 0:07:28]} 21. e5 {[%emt 0:07:50]} b4 {[%emt 0:12:26]} 22. Na4 {[%emt 0:00:11]} Qe7 {[%emt 0:12:12]} 23. f4 {[%emt 0:17:52]} f5 {[%emt 0:11:30]} 24. Qc2 {[%emt 0:01:54]} Qa7 {[%emt 0:06:12]} 25. Nc5 {[%emt 0:00:47]} Rab8 {[%emt 0:01:59]} 26. Kh1 {[%emt 0:09:20]} a4 {[%emt 0:05:05]} 27. g4 {[%emt 0:09:55]} fxg4 {[%emt 0:00:47]} 28. f5 {[%emt 0:00:16]} gxf5 {[%emt 0:01:11]} 29. Qxf5 {[%emt 0:00:14]} Rf8 {[%emt 0:00:39]} 30. Qe6+ {[%emt 0:03:10]} Kh8 {[%emt 0:00:29]} 31. Nd7 {[%emt 0:00:21]} Qxd4 {[%emt 0:00:32]} 32. Nxf8 {[%emt 0:00:36]} Rb7 {[%emt 0:00:31]} 33. Nd7 {[%emt 0:00:40]} 1-0

[Event "Asian Nation Cup Women 2018"]
[Site "Hamedan"]
[Date "2018.08.01"]
[Round "5"]
[White "Pham, Le Thao Nguyen"]
[Black "Vaishali R"]
[Result "1-0"]
[ECO "D58"]
[WhiteElo "2334"]
[BlackElo "2294"]
[Annotator "NA"]
[PlyCount "126"]
[EventDate "2018.07.27"]
[EventType "swiss"]
[EventCountry "IRI"]
[SourceTitle "playchess.com"]
[Source "ChessBase"]
[SourceQuality "1"]
[WhiteTeam "Vietnam"]
[BlackTeam "India"]
[WhiteTeamCountry "VIE"]
[BlackTeamCountry "IND"]
[TimeControl "40/5400+30:1800+30"]

1. d4 {[%emt 0:00:00]} Nf6 {[%emt 0:00:00]} 2. Nf3 {[%emt 0:00:02]} d5 {[%emt 0:00:00]} 3. c4 {[%emt 0:00:32]} e6 {[%emt 0:00:00]} 4. Nc3 {[%emt 0:00:21]} Be7 {[%emt 0:00:00]} 5. Bg5 {[%emt 0:00:27]} O-O {[%emt 0:00:26]} 6. e3 {[%emt 0:00:39]} h6 {[%emt 0:00:09]} 7. Bh4 {[%emt 0:00:34]} b6 {[%emt 0:00:08]} 8. Be2 {[%emt 0:00:46]} Bb7 {[%emt 0:00:17]} 9. Bxf6 {[%emt 0:02:11]} Bxf6 {[%emt 0:00:03]} 10. cxd5 {[%emt 0:00:19]} exd5 {[%emt 0:00:02]} 11. b4 {[%emt 0:00:42]} c6 {[%emt 0:03:19]} 12. O-O {[%emt 0:01:08]} Qd6 {[%emt 0:01:42]} 13. Qb3 {[%emt 0:02:28]} Nd7 {[%emt 0:01:52]} 14. Rfd1 {[%emt 0:05:58]} a5 {[%emt 0:01:55]} 15. b5 {[%emt 0:04:12]} c5 {[%emt 0:01:55]} 16. dxc5 {[%emt 0:08:37]} Nxc5 {[%emt 0:00:50]} 17. Qa3 {[%emt 0:01:06]} Rfd8 {[%emt 0:00:49]} 18. Rac1 {[%emt 0:05:17]} Rac8 19. Nd4 {[%emt 0:04:18]} Rc7 {[%emt 0:32:13]} 20. Bf3 Be5 21. g3 {[%emt 0:13:43]} Qf6 {[%emt 0:12:33]} 22. Nce2 {[%emt 0:01:54]} Ne4 {[%emt 0:03:28]} 23. Rxc7 {[%emt 0:05:37]} Bxc7 {[%emt 0:00:03]} 24. Nf4 {[%emt 0:02:17]} Bd6 {[%emt 0:06:43]} 25. Qb3 {[%emt 0:04:26]} Bxf4 {[%emt 0:11:55]} 26. exf4 {[%emt 0:07:59]} Rc8 {[%emt 0:00:52]} 27. Qe3 {[%emt 0:02:56]} Rc3 {[%emt 0:04:12]} 28. Rd3 {[%emt 0:01:06]} Rc4 {[%emt 0:00:16]} 29. h4 {[%emt 0:02:33]} Qd6 {[%emt 0:11:25]} 30. Bg2 {[%emt 0:03:00]} Qb4 {[%emt 0:01:40]} 31. Kh2 {[%emt 0:00:59]} Kh7 {[%emt 0:03:46]} 32. f3 {[%emt 0:01:47]} Nc5 {[%emt 0:01:40]} 33. Rd1 {[%emt 0:02:15]} Qc3 {[%emt 0:01:19]} 34. Qe5 {[%emt 0:00:42]} Bc8 {[%emt 0:00:54]} 35. Qxd5 {[%emt 0:01:15]} f6 {[%emt 0:00:29]} 36. Qd8 {[%emt 0:01:56]} Ne6 {[%emt 0:00:31]} 37. Nxe6 {[%emt 0:01:07]} Bxe6 {[%emt 0:00:01]} 38. Qxb6 {[%emt 0:00:22]} Bf5 {[%emt 0:00:17]} 39. Rd8 {[%emt 0:03:25]} Qe1 {[%emt 0:01:02]} 40. Qg1 {[%emt 0:04:40]} Qb4 {[%emt 0:00:41]} 41. Qd1 {[%emt 0:09:46]} Qxb5 {[%emt 0:04:09]} 42. Qd5 {[%emt 0:04:46]} Qxd5 {[%emt 0:00:51]} 43. Rxd5 {[%emt 0:00:02]} Be6 {[%emt 0:01:24]} 44. Rxa5 {[%emt 0:00:13]} Rc2 {[%emt 0:00:32]} 45. a3 {[%emt 0:00:20]} f5 {[%emt 0:02:50]} 46. h5 {[%emt 0:01:16]} Kg8 {[%emt 0:03:25]} 47. Kh3 {[%emt 0:06:39]} Rc3 {[%emt 0:07:09]} 48. Kh4 {[%emt 0:03:47]} Rc2 {[%emt 0:00:35]} 49. Bh3 {[%emt 0:01:18]} Rh2 {[%emt 0:06:16]} 50. g4 {[%emt 0:00:59]} fxg4 {[%emt 0:01:07]} 51. fxg4 {[%emt 0:00:06]} Rc2 {[%emt 0:00:17]} 52. f5 {[%emt 0:03:09]} Bb3 {[%emt 0:00:41]} 53. Rb5 {[%emt 0:00:40]} Ba4 {[%emt 0:00:25]} 54. Rb4 {[%emt 0:00:28]} Bc6 {[%emt 0:00:15]} 55. Bf1 {[%emt 0:01:06]} Bd5 {[%emt 0:00:46]} 56. a4 {[%emt 0:00:59]} Rc1 {[%emt 0:00:27]} 57. Bb5 {[%emt 0:00:32]} Rc3 {[%emt 0:00:26]} 58. Rd4 {[%emt 0:00:28]} Bg2 {[%emt 0:00:34]} 59. Rd3 {[%emt 0:00:16]} Rc1 {[%emt 0:00:06]} 60. Rd2 {[%emt 0:01:19]} Be4 {[%emt 0:00:22]} 61. Kg3 {[%emt 0:00:17]} Ra1 {[%emt 0:00:11]} 62. Kf4 {[%emt 0:00:20]} Bh1 {[%emt 0:00:13]} 63. Rd4 {[%emt 0:01:08]} Ra3 {[%emt 0:00:13] Ke4} 1-0

[Event "Asian Nation Cup Women 2018"]
[Site "Hamedan"]
[Date "2018.08.01"]
[Round "5"]
[White "Alinasab, Mobina"]
[Black "Guo, Qi"]
[Result "0-1"]
[ECO "C07"]
[WhiteElo "2281"]
[BlackElo "2361"]
[Annotator "NA"]
[PlyCount "152"]
[EventDate "2018.07.27"]
[EventType "swiss"]
[EventCountry "IRI"]
[SourceTitle "playchess.com"]
[Source "ChessBase"]
[SourceQuality "1"]
[WhiteTeam "Iran"]
[BlackTeam "China"]
[WhiteTeamCountry "IRI"]
[BlackTeamCountry "CHN"]
[TimeControl "40/5400+30:1800+30"]

1. e4 {[%emt 0:00:00]} e6 {[%emt 0:00:00]} 2. d4 {[%emt 0:00:00]} d5 {[%emt 0:00:00]} 3. Nd2 {[%emt 0:02:01]} c5 {[%emt 0:00:10]} 4. Ngf3 {[%emt 0:00:36]} cxd4 {[%emt 0:00:12]} 5. Nxd4 {[%emt 0:00:16]} Nc6 {[%emt 0:00:11]} 6. Bb5 {[%emt 0:00:18]} Bd7 {[%emt 0:00:12]} 7. Nxc6 {[%emt 0:00:10]} Bxc6 {[%emt 0:00:15]} 8. Bxc6+ {[%emt 0:00:05]} bxc6 {[%emt 0:00:03]} 9. c4 {[%emt 0:00:04]} Nf6 {[%emt 0:03:50]} 10. Qa4 {[%emt 0:02:04]} Qd7 {[%emt 0:00:21]} 11. e5 {[%emt 0:11:24]} Ng8 {[%emt 0:01:44]} 12. O-O {[%emt 0:00:27]} Ne7 {[%emt 0:00:05]} 13. Nf3 {[%emt 0:01:37]} Nf5 {[%emt 0:07:04]} 14. Rd1 {[%emt 0:12:29]} Bc5 {[%emt 0:17:20]} 15. g4 {[%emt 0:03:28]} Ne7 {[%emt 0:00:16]} 16. b4 {[%emt 0:05:07]} Bb6 {[%emt 0:01:40]} 17. Bf4 {[%emt 0:01:52]} O-O {[%emt 0:06:01]} 18. Bg3 Ng6 {[%emt 0:07:43]} 19. Rac1 {[%emt 0:21:49]} Rac8 {[%emt 0:02:22]} 20. Nd4 {[%emt 0:04:17]} Bxd4 {[%emt 0:03:33]} 21. Rxd4 {[%emt 0:00:28]} Qe7 {[%emt 0:01:00]} 22. Rdd1 {[%emt 0:13:50]} Qg5 {[%emt 0:05:59]} 23. Qxa7 {[%emt 0:00:51]} Qxg4 {[%emt 0:00:45]} 24. Qe3 {[%emt 0:02:35]} Nh4 {[%emt 0:04:15]} 25. Qf4 {[%emt 0:00:37]} Qxf4 26. Bxf4 {[%emt 0:00:02]} Ng6 {[%emt 0:01:55]} 27. Bg3 {[%emt 0:00:13]} h5 {[%emt 0:00:32]} 28. h3 {[%emt 0:01:20]} Ne7 {[%emt 0:01:26]} 29. cxd5 {[%emt 0:03:23]} Nxd5 {[%emt 0:02:05]} 30. Rc4 {[%emt 0:01:12]} Ra8 {[%emt 0:00:21]} 31. Rd2 {[%emt 0:00:58]} Rfb8 {[%emt 0:04:05]} 32. Rb2 {[%emt 0:02:37]} Ra3 {[%emt 0:04:30]} 33. Bh4 {[%emt 0:02:30]} Ra4 {[%emt 0:02:49]} 34. Bg3 {[%emt 0:05:50]} Rb6 {[%emt 0:05:47]} 35. Kf1 {[%emt 0:01:58]} Rba6 {[%emt 0:00:28]} 36. Kg2 {[%emt 0:00:58]} Kh7 {[%emt 0:05:59]} 37. Rh4 {[%emt 0:00:27]} Kg6 {[%emt 0:00:08]} 38. Rb3 {[%emt 0:00:23]} Rxa2 {[%emt 0:01:30]} 39. Rc4 {[%emt 0:00:40]} R6a3 {[%emt 0:02:07]} 40. Rxa3 {[%emt 0:00:19]} Rxa3 {[%emt 0:00:04]} 41. Rxc6 {[%emt 0:30:37]} Rb3 {[%emt 0:33:35]} 42. Rd6 {[%emt 0:00:00]} Rxb4 {[%emt 0:00:00]} 43. Rd7 {[%emt 0:00:00]} Rb3 {[%emt 0:00:00]} 44. Ra7 {[%emt 0:00:00]} Rc3 {[%emt 0:00:00]} 45. Rd7 {[%emt 0:00:00]} Rc7 {[%emt 0:00:00]} 46. Rd8 {[%emt 0:00:00]} Ne7 {[%emt 0:00:00]} 47. Rd3 {[%emt 0:00:00]} Nf5 {[%emt 0:00:00]} 48. Bf4 {[%emt 0:00:00]} Rc5 {[%emt 0:00:00]} 49. Rd7 {[%emt 0:00:00]} Rc3 {[%emt 0:00:00]} 50. Ra7 {[%emt 0:00:00]} Nh4+ {[%emt 0:00:00]} 51. Kg1 {[%emt 0:00:00]} Nf3+ {[%emt 0:00:00]} 52. Kf1 {[%emt 0:00:00]} Rc5 {[%emt 0:00:00]} 53. Ra3 {[%emt 0:00:19]} Nxe5 {[%emt 0:00:00]} 54. Rg3+ {[%emt 0:00:02]} Kh7 {[%emt 0:00:00]} 55. Ra3 {[%emt 0:02:38]} Nc6 {[%emt 0:00:00]} 56. Rg3 {[%emt 0:00:55]} Rf5 {[%emt 0:00:00]} 57. Bd6 {[%emt 0:00:20]} Ne5 {[%emt 0:00:00]} 58. Rc3 {[%emt 0:01:04]} Ng6 {[%emt 0:00:00]} 59. Rc7 {[%emt 0:00:13]} Nf4 {[%emt 0:00:00]} 60. Rc3 {[%emt 0:01:49]} Nd5 {[%emt 0:00:00]} 61. Rd3 {[%emt 0:00:32]} g5 {[%emt 0:00:00]} 62. Bb8 {[%emt 0:01:41]} Kg6 {[%emt 0:00:00]} 63. Rb3 {[%emt 0:00:19]} Nf6 {[%emt 0:00:00]} 64. Rb4 {[%emt 0:00:16]} Rd5 {[%emt 0:00:00]} 65. Kg2 {[%emt 0:00:12]} Nd7 {[%emt 0:00:00]} 66. Ba7 {[%emt 0:00:53]} Ne5 {[%emt 0:00:00]} 67. Be3 {[%emt 0:00:18]} Nc6 {[%emt 0:00:00]} 68. Rc4 {[%emt 0:00:15]} Ne7 {[%emt 0:00:00]} 69. Rc7 {[%emt 0:00:30]} Nf5 {[%emt 0:00:00]} 70. Bc1 {[%emt 0:00:12]} Nh4+ {[%emt 0:00:00]} 71. Kh2 {[%emt 0:00:45]} Rd1 {[%emt 0:00:00]} 72. Be3 {[%emt 0:00:27]} f6 {[%emt 0:00:00]} 73. Rc6 {[%emt 0:00:44]} e5 {[%emt 0:00:00]} 74. Rc4 {[%emt 0:01:36]} Kf5 {[%emt 0:00:00]} 75. Rc6 {[%emt 0:00:53]} e4 {[%emt 0:00:00]} 76. Rc5+ {[%emt 0:00:17]} Kg6 {[%emt 0:00:00]} 0-1